bitfinex/quotes_ETHUSD_20250905
["timestamp","ask_amount","ask_price","bid_price","bid_amount"]
[1757082532395,7.75135587,4331.9,4331.8,0.029]
[1757082532626,8.93795587,4331.9,4331.8,0.029]
[1757082533102,7.30345587,4331.9,4331.8,0.029]
[1757082533297,8.93595587,4331.9,4331.8,0.029]
[1757082533496,9.72795587,4331.9,4331.8,0.029]
[1757082533971,6.10056245,4331.7,4331.6,1e-08]
[1757082534491,12.72606245,4331.7,4331.6,1e-08]
[1757082534666,2.30898889,4330.9,4330.8,1e-08]
[1757082534861,7.33085125,4330.9,4330.8,1e-08]
[1757082535076,12.72648889,4330.9,4330.8,1e-08]
[1757082535275,2.30952215,4329.9,4329.8,0.73859026]
[1757082535474,9.00252215,4329.9,4329.8,0.73859026]
[1757082535798,9.00252215,4329.9,4327.8,1.1799]
[1757082535799,3.10184223,4329.3,4327.8,0.025]
[1757082535964,14.88211752,4328.9,4328.8,1e-08]
[1757082536165,20.66511752,4328.9,4328.8,1e-08]
[1757082536378,0.792,4328.5,4327.8,0.025]
[1757082536598,3.10258943,4327.9,4327.8,0.025]
[1757082536798,3.0,4327.8,4326.8,0.025]
[1757082537000,5.0198837,4327.7,4326.8,0.025]
[1757082537300,0.1152,4326.9,4326.8,0.025]
[1757082537598,2.31112343,4326.9,4326.8,0.025]
[1757082537899,7.30112343,4326.9,4326.8,0.025]
[1757082538063,4.99,4326.9,4326.8,0.025]
[1757082538271,1.1866,4326.9,4323.8,3.78377472]
[1757082538498,0.025,4326.5,4324.4,0.69461971]
[1757082538665,12.57206185,4325.6,4324.4,0.69461971]
[1757082539002,12.57206185,4325.6,4323.9,0.4575]
[1757082539003,2.31193173,4325.4,4324.3,0.4575]
[1757082539198,5.317,4326.8,4323.8,3.78377472]
[1757082539199,12.57206185,4324.4,4323.8,3.78377472]
[1757082539401,2.31272693,4323.9,4323.8,3.78377472]
[1757082539987,2.31251502,4324.3,4323.8,5.39617472]
[1757082540298,0.02889839,4325.5,4323.9,1.6124]
[1757082540506,12.57206185,4326.8,4324.0,3.3134]
[1757082540678,12.57206185,4326.0,4324.1,1.6124]
[1757082541003,12.57206185,4326.5,4324.2,1.6124]
[1757082541202,12.57206185,4325.6,4324.2,1.1549]
[1757082541380,3.0,4326.7,4324.3,0.4575]
[1757082541581,2.31144395,4326.3,4324.4,1.1549]
[1757082541774,12.57206185,4325.7,4324.4,1.1549]
[1757082541975,14.88319749,4326.9,4324.6,2.31235258]
[1757082542170,0.02889037,4326.7,4324.7,1.6124]
[1757082542372,12.57206185,4327.1,4324.8,1.6124]
[1757082542576,0.02888837,4327.0,4324.9,1.6124]
[1757082542870,0.02888837,4327.0,4325.0,1.6124]
[1757082543183,12.57206185,4328.3,4325.0,1.6124]
[1757082543371,5.01688036,4328.2,4325.1,3.2834]
[1757082543579,0.0242,4329.8,4325.2,3.3144]
[1757082543775,0.0242,4329.8,4325.5,3.0]
[1757082543990,0.025,4327.8,4325.6,5.32]
[1757082544188,0.0242,4329.8,4326.3,2.31144395]
[1757082544430,0.0242,4329.8,4325.7,4.6124]
[1757082544431,2.30968218,4329.6,4325.7,4.6124]
[1757082544587,0.21487169,4329.5,4325.9,3.0]
[1757082544792,0.02887169,4329.5,4326.0,1.6124]
[1757082545095,0.0242,4329.8,4326.4,3.0]
[1757082545302,0.0242,4329.8,4329.7,2.30962884]
[1757082545488,0.276,4332.7,4330.2,2.309355]
[1757082545687,0.025,4332.8,4329.8,3.0]
[1757082545688,0.025,4332.8,4330.0,2.30946882]
[1757082545889,0.025,4332.8,4329.9,1.6124]
[1757082546322,0.025,4332.8,4328.7,12.57206185]
[1757082546323,0.02885037,4332.7,4330.0,3.3144]
[1757082546621,2.30876828,4331.4,4330.1,3.3144]
[1757082546808,0.025,4332.8,4331.4,2.30867658]
[1757082547008,0.025,4332.8,4330.2,1.6124]
[1757082547009,2.30859237,4331.7,4330.2,1.6124]
[1757082547190,0.02885769,4331.6,4330.3,1.6124]
[1757082547390,12.57206185,4331.3,4329.5,1.6124]
[1757082547698,0.1152,4330.7,4330.0,0.1152]
[1757082548012,2.30920217,4330.5,4328.8,1.1549]
[1757082548342,4.983,4331.1,4328.9,0.4575]
[1757082548545,5.32,4332.0,4329.0,1.1549]
[1757082548695,12.57206185,4331.5,4329.1,0.4575]
[1757082549010,2.30877565,4331.3,4329.2,1.1549]
[1757082549215,0.02885902,4331.4,4329.3,0.4351]
[1757082549413,2.30839983,4332.1,4330.2,2.30935001]
[1757082549638,1.702,4333.4,4330.4,0.792]
[1757082549794,2.30828733,4332.3,4330.7,2.30905465]
[1757082549989,2.30828733,4332.3,4329.4,3.792]
[1757082549990,2.3089087,4331.1,4330.8,1.6109]
[1757082550190,2.3090422,4330.8,4329.0,1.1758]
[1757082550391,3.0,4330.4,4328.6,0.4351]
[1757082550622,0.02886636,4330.3,4328.6,0.4351]
[1757082550991,2.30952215,4329.9,4329.8,0.025]
[1757082551416,3.0,4331.0,4329.8,0.025]
[1757082551417,4.98,4331.4,4329.8,1.6359]
[1757082551828,0.02886302,4330.8,4329.8,1.6359]
[1757082552005,3.0,4330.0,4328.3,1.6109]
[1757082552205,0.02886902,4329.9,4328.9,0.4351]
[1757082552654,0.02886902,4329.9,4328.3,1.6109]
[1757082552927,12.57206185,4331.2,4329.5,2.30969326]
[1757082553227,12.57206185,4330.8,4329.5,1.1758]
[1757082553440,2.30968218,4329.6,4329.5,1.1758]
[1757082553746,12.57206185,4329.8,4328.8,0.025]
[1757082554230,0.02887036,4329.7,4328.8,0.025]
[1757082554530,5.30906022,4330.8,4328.8,0.025]
[1757082554531,3.0,4331.5,4329.4,2.30978712]
[1757082554731,2.30840824,4332.0,4329.5,1.6109]
[1757082554732,2.30921055,4330.5,4329.5,1.6109]
[1757082555030,0.001,4331.3,4329.5,1.1758]
[1757082555229,0.001,4331.3,4329.6,1.6109]
[1757082555528,0.001,4331.3,4329.0,14.5]
[1757082555529,2.30956616,4329.9,4329.0,14.5]
[1757082555695,2.30920217,4330.5,4328.8,1.6359]
[1757082555895,12.57206185,4330.0,4328.8,1.2008]
[1757082556202,2.3095755,4329.8,4328.8,0.025]
[1757082556416,2.30983041,4329.4,4328.8,0.025]
[1757082556613,5.001,4330.8,4328.9,1.6109]
[1757082556822,2.3095457,4329.9,4328.9,1.6109]
[1757082557131,0.02886969,4329.8,4328.9,1.6109]
[1757082557331,12.57206185,4330.5,4328.9,1.6109]
[1757082557332,2.30983923,4329.4,4328.9,1.6109]
[1757082557509,2.30985896,4329.3,4328.9,1.6109]
[1757082557710,2.30975859,4329.5,4328.9,1.1758]
[1757082557910,4.975,4330.3,4328.9,1.1758]
[1757082558111,0.1152,4329.6,4328.9,1.291]
[1757082558737,0.025,4330.8,4329.5,0.1152]
[1757082558960,2.30914884,4330.6,4329.6,1.1758]
[1757082559162,0.025,4330.8,4328.9,16.1109]
[1757082559163,12.57206185,4329.9,4328.9,16.1109]
[1757082559452,2.30977408,4329.5,4328.9,1.6109]
[1757082559651,12.57206185,4329.9,4328.8,0.025]
[1757082559857,0.02886969,4329.8,4328.8,0.025]
[1757082560054,12.57206185,4329.9,4328.9,1.6109]
[1757082560354,12.57206185,4332.4,4329.6,14.5]
[1757082560531,12.57206185,4330.7,4329.7,1.6109]
[1757082560733,12.57206185,4331.5,4329.7,1.1758]
[1757082561033,12.57206185,4331.5,4329.8,16.1109]
[1757082561357,2.30914884,4330.6,4329.8,1.6109]
[1757082561524,12.57206185,4330.7,4329.8,1.6109]
[1757082562129,2.30931631,4330.3,4329.8,1.6109]
[1757082562358,2.30914884,4330.6,4329.8,1.6109]
[1757082562561,12.57206185,4330.7,4329.6,1.6109]
[1757082562724,2.33805927,4330.6,4329.0,0.4351]
[1757082563052,3.02886436,4330.6,4329.0,0.4351]
[1757082563449,0.02886436,4330.6,4329.0,0.4351]
[1757082563856,17.54406185,4330.7,4329.5,2.30969635]
[1757082564065,14.88117266,4330.7,4329.6,1.6109]
[1757082564244,12.57206185,4330.7,4329.8,2.30957032]
[1757082564452,2.3095755,4329.8,4329.7,0.4351]
[1757082564621,2.30914884,4330.6,4329.7,0.4351]
[1757082564961,2.30952258,4329.9,4329.7,0.4351]
[1757082565122,2.30914884,4330.6,4329.7,0.4351]
[1757082565323,2.30914884,4330.6,4328.2,1.702]
[1757082565324,2.3095755,4329.8,4327.5,1.1758]
[1757082565522,2.31038402,4328.3,4326.8,0.025]
[1757082565755,14.88265128,4327.9,4326.8,0.4601]
[1757082565927,12.57206185,4327.9,4326.8,0.4601]
[1757082566249,14.88265128,4327.9,4326.8,0.4601]
[1757082566435,14.88265128,4327.9,4326.8,0.025]
[1757082566838,2.31058943,4327.9,4326.8,0.025]
[1757082567045,1.702,4328.5,4326.8,0.025]
[1757082567231,12.57206185,4328.6,4326.8,0.025]
[1757082567431,12.57206185,4327.9,4326.8,0.025]
[1757082567926,0.11466655,4330.1,4326.9,2.1371]
[1757082568150,12.57206185,4329.6,4327.0,1.6109]
[1757082568352,3.02887169,4329.5,4327.1,0.4351]
[1757082568527,3.02887169,4329.5,4327.3,2.3109098]
[1757082568729,0.02887169,4329.5,4327.4,1.6109]
[1757082569036,0.025,4329.8,4327.6,2.3107496]
[1757082569349,0.025,4329.8,4327.5,16.1109]
[1757082569531,2.31019999,4328.7,4327.6,1.6109]
[1757082569857,2.30994895,4329.1,4327.6,1.6109]
[1757082570075,2.31005567,4328.9,4327.6,1.6109]
[1757082570377,0.05387636,4328.8,4326.9,0.4351]
[1757082570526,0.05387636,4328.8,4326.8,0.025]
[1757082570527,12.57206185,4328.4,4326.8,0.025]
[1757082570730,2.31112343,4326.9,4326.8,0.025]
[1757082571550,2.3110502,4327.1,4326.8,0.025]
[1757082571728,2.31105751,4327.1,4326.8,0.025]
[1757082572064,2.31100903,4327.2,4326.8,0.4601]
[1757082572365,2.310803,4327.5,4326.8,0.025]
[1757082572570,4.966,4328.0,4326.8,0.025]
[1757082572733,0.02888236,4327.9,4326.8,0.025]
[1757082572930,4.966,4328.0,4326.8,0.4601]
[1757082573149,2.31095649,4327.3,4326.8,0.4601]
[1757082573355,2.31105913,4327.1,4326.8,0.025]
[1757082573538,2.31112343,4326.9,4326.8,0.025]
[1757082574668,12.57206185,4327.8,4326.8,0.025]
[1757082574832,0.0288837,4327.7,4326.8,0.025]
[1757082575189,12.57206185,4327.8,4326.8,0.025]
[1757082577247,0.025,4329.8,4328.7,1.6109]
[1757082577447,0.025,4329.8,4328.8,1.6109]
[1757082577695,0.025,4329.8,4329.7,2.30962884]
[1757082578041,0.025,4329.8,4329.7,3.92052884]
[1757082579261,0.025,4329.8,4329.7,1.7261]
[1757082579462,0.025,4329.8,4329.7,4.03572884]
[1757082579669,0.025,4329.8,4329.7,8.99572884]
[1757082579984,0.025,4330.8,4329.7,6.6861]
[1757082580137,0.025,4330.8,4330.7,2.30909552]
[1757082580334,0.025,4330.8,4329.9,0.792]
[1757082580641,0.025,4330.8,4330.7,2.30909552]
[1757082581038,0.025,4330.8,4330.3,0.4723]
[1757082581260,0.025,4330.8,4330.4,2.30920545]
[1757082581462,2.30921825,4330.5,4330.3,1.6437]
[1757082581669,2.33406036,4330.8,4329.6,1.6437]
[1757082581940,2.30957939,4329.8,4329.6,1.1714]
[1757082582172,0.02886502,4330.5,4328.8,0.025]
[1757082582340,0.02886369,4330.7,4328.8,0.025]
[1757082582546,2.30974131,4329.5,4328.8,0.025]
[1757082582745,0.025,4330.8,4328.8,0.025]
[1757082582746,0.02886502,4330.5,4328.8,0.025]
[1757082582972,0.02886369,4330.7,4328.9,0.4723]
[1757082583178,2.30954801,4329.9,4328.9,0.4723]
[1757082583384,0.025,4330.8,4328.8,0.025]
[1757082583385,2.30961409,4329.8,4328.8,0.025]
[1757082583556,2.30978359,4329.5,4328.8,0.4973]
[1757082583877,2.31005567,4328.9,4328.8,0.4973]
[1757082584051,2.31005567,4328.9,4328.8,0.025]
[1757082584248,2.30958904,4329.8,4328.8,0.025]
[1757082584446,0.02887036,4329.7,4328.8,0.025]
[1757082584766,2.30984223,4329.3,4327.8,0.025]
[1757082584943,3.0,4329.5,4327.8,0.025]
[1757082585146,4.98387236,4329.4,4327.8,0.025]
[1757082585344,2.30984223,4329.3,4327.8,0.025]
[1757082585548,5.36011032,4329.3,4327.8,0.025]
[1757082585786,10.273,4329.6,4327.8,0.025]
[1757082585970,3.0,4330.0,4327.8,0.025]
[1757082586158,0.1,4329.5,4327.8,0.025]
[1757082586482,2.31058943,4327.9,4327.8,0.025]
[1757082586656,2.31018832,4328.7,4327.8,0.025]
[1757082586657,2.40976413,4329.5,4327.8,0.025]
[1757082586857,2.31043186,4328.2,4327.8,0.025]
[1757082587079,2.30973553,4329.5,4327.8,0.025]
[1757082587379,2.31039635,4328.3,4327.8,0.025]
[1757082587580,2.31037725,4328.3,4327.8,0.025]
[1757082587784,0.1,4329.5,4327.8,0.025]
[1757082587950,2.30984223,4329.3,4327.8,0.025]
[1757082588278,2.31033923,4328.4,4327.8,0.025]
[1757082588447,0.1,4329.5,4327.8,0.025]
[1757082588647,0.02887236,4329.4,4327.8,0.025]
[1757082588872,2.30989559,4329.2,4327.8,0.025]
[1757082589085,0.02887436,4329.1,4327.8,0.025]
[1757082589247,0.02887169,4329.5,4327.8,0.025]
[1757082589445,4.954,4329.7,4327.9,0.4723]
[1757082589677,2.30973553,4329.5,4327.8,1.1964]
[1757082589882,2.30984223,4329.3,4327.8,1.1964]
[1757082590050,0.02887102,4329.6,4327.8,1.1964]
[1757082590393,0.1152,4329.0,4328.3,0.1152]
[1757082590559,1.727,4329.8,4328.4,1.6437]
[1757082590560,0.025,4329.8,4328.4,1.6437]
[1757082590749,0.025,4329.8,4328.9,0.1152]
[1757082590950,2.30973237,4329.6,4329.4,0.1152]
[1757082591248,0.025,4329.8,4329.5,1.6437]
[1757082591452,0.025,4329.8,4329.7,0.1152]
[1757082591680,0.025,4329.8,4329.7,2.30962884]
[1757082591881,0.025,4329.8,4329.7,3.95332884]
[1757082592081,0.025,4329.8,4329.7,1.6437]
[1757082592586,0.025,4329.8,4329.6,1.702]
[1757082592881,2.30962884,4329.7,4329.6,1.702]
[1757082593081,0.025,4329.8,4328.6,1.702]
[1757082593283,0.025,4329.8,4328.7,2.3101624]
[1757082593284,2.3097486,4329.5,4328.7,2.3101624]
[1757082593450,2.30962884,4329.7,4328.8,0.4723]
[1757082593649,0.025,4329.8,4328.8,0.4723]
[1757082593884,0.025,4329.8,4328.9,1.1714]
[1757082594058,2.30962982,4329.7,4329.0,2.31000231]
[1757082594258,2.30968226,4329.6,4328.9,3.48144743]
[1757082594460,0.025,4329.8,4328.9,1.1714]
[1757082594763,0.025,4329.8,4329.0,0.4723]
[1757082594964,2.30962903,4329.7,4329.0,2.7822555]
[1757082595164,2.30969466,4329.6,4329.0,0.4723]
[1757082595479,0.025,4329.8,4329.0,0.4723]
[1757082595880,0.025,4329.8,4329.0,5.4183]
[1757082596249,0.025,4329.8,4329.1,3.95364014]
[1757082596463,0.025,4329.8,4329.2,7.25489559]
[1757082596669,0.025,4329.8,4329.1,1.6437]
[1757082597397,0.025,4329.8,4329.1,3.95362468]
[1757082597564,0.025,4329.8,4329.1,1.6437]
[1757082597764,2.30974648,4329.5,4329.1,1.1714]
[1757082597972,2.30962884,4329.7,4329.2,1.6437]
[1757082598308,2.30984223,4329.3,4329.2,1.1714]
[1757082598512,2.3099949,4329.1,4329.0,4.943]
[1757082598864,2.30978888,4329.4,4328.6,1.702]
[1757082599069,2.31026324,4328.6,4327.9,4.943]
[1757082599296,2.30904223,4329.3,4327.9,4.943]
[1757082599463,2.33457831,4329.8,4328.0,1.6437]
[1757082599464,0.025,4329.8,4328.0,1.6437]
[1757082599668,0.025,4329.8,4328.1,2.31048265]
[1757082599875,0.025,4329.8,4328.0,1.1714]
[1757082600075,2.31016552,4328.7,4328.1,2.31044405]
[1757082600278,0.02887769,4328.6,4327.8,0.025]
[1757082600496,0.02887169,4329.5,4327.8,0.025]
[1757082600799,2.31058943,4327.9,4327.8,0.025]
[1757082601187,2.33947179,4327.9,4327.8,0.025]
[1757082601694,2.33947179,4327.9,4326.8,0.025]
[1757082601695,2.31069621,4327.7,4326.8,0.025]
[1757082601866,2.31112343,4326.9,4326.8,0.025]
[1757082602066,3.0,4328.1,4326.8,0.025]
[1757082602305,0.1152,4327.3,4326.8,0.025]
[1757082602903,2.52601951,4327.3,4326.8,0.025]
[1757082603108,0.02888704,4327.2,4326.8,0.025]
[1757082603268,0.0288837,4327.7,4326.8,0.025]
[1757082603472,2.31112343,4326.9,4326.8,0.025]
[1757082604004,0.1152,4327.1,4326.8,0.025]
[1757082604376,2.31006186,4328.9,4327.0,2.31106746]
[1757082604575,0.1152,4327.9,4327.0,0.1152]
[1757082604795,0.1152,4328.2,4327.4,0.1152]
[1757082605407,0.02888103,4328.1,4326.8,0.025]
[1757082605905,0.0999,4328.4,4326.8,0.025]
[1757082605906,0.02888036,4328.2,4326.8,0.025]
[1757082606105,2.31101311,4327.2,4326.8,0.025]
[1757082606410,4.937,4328.2,4326.8,0.025]
[1757082606619,2.31112343,4326.9,4326.8,0.025]
[1757082606836,2.3107496,4327.6,4326.8,0.025]
[1757082607117,2.3109098,4327.3,4326.8,0.025]
[1757082607284,2.31112343,4326.9,4326.8,0.025]
[1757082607613,2.31165768,4325.9,4325.8,5.025]
[1757082608179,2.31208526,4325.1,4324.3,1.1714]
[1757082608380,2.31208526,4325.1,4323.8,0.004]
[1757082608381,0.02890106,4325.1,4323.8,0.004]
[1757082608894,0.02889839,4325.5,4323.8,0.004]
[1757082609098,2.3119249,4325.4,4324.3,0.4723]
[1757082609303,2.31219218,4324.9,4324.3,0.4723]
[1757082609475,2.34109458,4324.9,4324.1,1.1714]
[1757082609812,2.31219218,4324.9,4324.1,1.1714]
[1757082609976,2.31219218,4324.9,4323.8,0.004]
[1757082610915,0.02890173,4325.0,4324.8,1.6188]
[1757082611212,5.322,4327.5,4324.9,1.5938]
[1757082611513,2.31193288,4325.4,4324.9,1.5938]
[1757082611817,2.31213872,4325.0,4324.8,0.025]
[1757082612113,2.31219218,4324.9,4324.8,0.025]
[1757082612480,2.34109458,4324.9,4324.8,0.025]
[1757082613107,2.31219218,4324.9,4324.8,0.025]
[1757082613815,2.31252963,4324.3,4323.8,0.004]
[1757082613989,0.02890708,4324.2,4322.3,0.25]
[1757082614191,2.31326193,4322.9,4322.8,1e-08]
[1757082614514,2.3421777,4322.9,4322.8,1e-08]
[1757082614713,2.3421777,4322.9,4322.3,0.25]
[1757082614714,2.31352952,4322.4,4322.3,1e-08]
[1757082614880,2.31379717,4321.9,4321.0,0.025]
[1757082615079,1.73192313,4321.8,4321.0,0.025]
[1757082615276,0.792,4321.4,4319.8,0.025]
[1757082615481,7.66608172,4321.3,4319.8,0.025]
[1757082615710,2.3142791,4321.0,4319.8,0.025]
[1757082615913,3.0,4320.2,4319.1,1e-08]
[1757082616214,3.0,4320.2,4318.9,0.499]
[1757082616215,2.31535077,4319.0,4318.9,1e-08]
[1757082616419,11.39034998,4320.8,4318.9,1e-08]
[1757082616590,2.31535077,4319.0,4318.9,1e-08]
[1757082616789,2.34429265,4319.0,4318.9,1e-08]
[1757082617022,2.31556522,4318.6,4317.2,1.1393]
[1757082617311,4.04750978,4318.6,4317.8,1e-08]
[1757082617511,4.04750978,4318.6,4317.1,4.08259914]
[1757082617512,2.31597038,4317.9,4316.8,0.025]
[1757082617712,2.31639417,4317.1,4316.8,0.025]
[1757082617915,2.3164771,4316.9,4316.8,0.025]
[1757082618120,1.704,4317.3,4316.8,0.025]
[1757082618293,0.02895596,4316.9,4315.6,1.1393]
[1757082618616,0.02895596,4316.9,4315.5,0.9535]
[1757082618617,2.3158934,4318.0,4316.3,6.89442584]
[1757082618914,2.31617023,4317.5,4316.3,6.89442584]
[1757082619118,11.39034998,4320.2,4316.5,3.0]
[1757082619320,0.13993652,4319.8,4316.6,1.5938]
[1757082619483,2.31566856,4318.5,4316.7,1.5938]
[1757082619688,2.31557946,4318.6,4316.8,1.5938]
[1757082619885,2.31513229,4319.5,4317.0,2.31642344]
[1757082620125,2.31513229,4319.5,4316.4,1.704]
[1757082620126,0.11918598,4319.9,4318.1,2.315784]
[1757082620327,0.11918598,4319.9,4318.2,5.3858]
[1757082620622,0.025,4320.8,4318.5,3.792]
[1757082620822,0.025,4321.8,4320.8,2.31434062]
[1757082621026,0.025,4321.8,4319.9,1.704]
[1757082621211,0.0289238,4321.7,4319.2,3.0]
[1757082621410,1.73292447,4321.6,4319.3,1.5938]
[1757082621613,1.694,4321.5,4320.0,2.31476289]
[1757082621920,0.025,4321.8,4320.0,2.31476289]
[1757082621921,0.02892581,4321.4,4320.1,1.5938]
[1757082622123,0.025,4321.8,4320.2,0.4545]
[1757082622336,0.025,4322.8,4320.9,3.0]
[1757082622502,0.025,4322.8,4321.1,3.792]
[1757082622688,0.02890507,4324.5,4321.7,0.792]
[1757082623020,0.36265948,4326.1,4324.2,2.31255379]
[1757082623224,1.705,4327.0,4324.3,1.5938]
[1757082623390,2.31156428,4326.1,4325.0,2.312122]
[1757082623590,0.025,4327.8,4324.5,1.705]
[1757082623792,0.0288837,4327.7,4324.5,1.705]
[1757082623990,0.37563434,4327.1,4325.6,2.31177827]
[1757082624219,2.31098737,4327.2,4324.6,1.5938]
[1757082624220,0.0288837,4327.7,4324.7,3.0]
[1757082624424,0.0288837,4327.7,4324.6,1.5938]
[1757082624425,0.0288837,4327.7,4325.4,1.5938]
[1757082624611,0.02889037,4326.7,4323.8,4.925]
[1757082624818,2.31166046,4325.9,4324.6,1.5938]
[1757082625136,2.31166046,4325.9,4323.8,7.23777415]
[1757082625137,0.025,4326.8,4324.7,1.5938]
[1757082625289,0.025,4326.8,4324.8,3.792]
[1757082625486,0.025,4327.8,4324.9,3.0]
[1757082625692,0.025,4327.8,4325.1,3.0]
[1757082625693,0.0288837,4327.7,4325.1,3.0]
[1757082625894,0.025,4327.8,4325.2,1.5938]
[1757082626225,0.025,4327.8,4325.4,3.0]
[1757082626429,0.0288837,4327.7,4325.3,6.5168]
[1757082626615,0.025,4327.8,4325.4,1.5938]
[1757082627005,0.025,4327.8,4325.5,6.5168]
[1757082627195,0.0242,4327.8,4325.7,2.31176456]
[1757082627522,0.0242,4327.8,4327.3,2.31085929]
[1757082627734,0.0242,4327.8,4326.1,4.704]
[1757082627893,0.025,4328.8,4326.2,0.792]
[1757082628094,0.026,4329.8,4327.3,3.0]
[1757082628326,0.026,4329.8,4326.2,0.1200593]
[1757082628327,0.026,4329.8,4327.5,3.0]
[1757082628514,0.026,4329.8,4328.6,2.3101763]
[1757082628823,0.026,4329.8,4327.6,3.2978]
[1757082628824,0.25954853,4329.8,4327.6,3.2978]
[1757082629025,0.026,4329.8,4327.7,6.5138]
[1757082629235,0.02887036,4329.7,4327.8,0.4545]
[1757082629463,0.02887036,4329.7,4327.8,1.5938]
[1757082629591,0.026,4329.8,4327.9,1.5938]
[1757082630126,3.0,4329.6,4327.0,0.4545]
[1757082630296,1.66118372,4329.5,4327.0,0.4545]
[1757082630497,1.66118372,4329.5,4326.7,1.1393]
[1757082630498,0.792,4329.1,4326.7,1.1393]
[1757082630698,3.0,4328.9,4326.8,0.4545]
[1757082630894,0.02887636,4328.8,4326.9,1.1393]
[1757082631241,0.02887569,4328.9,4327.0,0.4545]
[1757082631395,0.23388693,4328.8,4327.0,0.4545]
[1757082631597,2.30984223,4329.3,4327.1,1.1393]
[1757082631800,0.02887369,4329.2,4327.1,1.1393]
[1757082632042,2.31042706,4328.3,4327.1,3.45030515]
[1757082632340,2.31042706,4328.3,4326.6,3.65]
[1757082632341,1.63231203,4329.5,4327.2,1.5938]
[1757082632542,0.026,4329.8,4327.4,0.792]
[1757082632754,0.026,4329.8,4327.6,0.792]
[1757082632931,0.026,4329.8,4327.5,1.5938]
[1757082632932,0.025,4330.8,4328.3,0.792]
[1757082633254,0.001,4331.3,4331.2,2.30882896]
[1757082633398,0.025,4332.8,4331.2,2.443]
[1757082633751,0.025,4332.8,4331.3,4.8381]
[1757082634091,0.025,4332.8,4331.3,1.8381]
[1757082634213,0.025,4332.8,4331.3,0.2443]
[1757082634413,0.025,4332.8,4331.4,1.5938]
[1757082634623,0.02885037,4332.7,4331.5,1.1393]
[1757082635005,0.025,4332.8,4331.5,1.5938]
[1757082635205,0.23328934,4332.7,4331.5,1.5938]
[1757082635515,0.1152,4332.4,4331.7,0.1152]
[1757082635710,0.1152,4332.4,4331.5,1.5938]
[1757082635711,0.02885303,4332.3,4331.5,1.1393]
[1757082635936,0.02885037,4332.7,4330.8,1.1393]
[1757082636135,2.3080829,4332.6,4330.8,1.1393]
[1757082636340,0.0288517,4332.5,4330.1,1.1393]
[1757082636539,2.30887417,4331.2,4330.8,0.025]
[1757082636741,2.30898889,4330.9,4330.8,0.025]
[1757082637038,2.30888227,4331.1,4330.8,0.025]
[1757082637242,2.30898889,4330.9,4330.8,0.025]
[1757082637441,0.23088742,4331.2,4330.9,0.4545]
[1757082637607,0.02886102,4331.1,4330.8,0.025]
[1757082637936,2.30856245,4331.7,4330.8,0.025]
[1757082638138,0.02885769,4331.6,4330.8,0.025]
[1757082638345,2.30840258,4332.0,4330.3,0.6188]
[1757082638504,4.909,4332.5,4330.3,0.6188]
[1757082638505,0.02885569,4331.9,4330.3,0.6188]
[1757082638703,2.30824273,4332.3,4330.4,0.23208]
[1757082638943,2.30834929,4332.1,4330.3,0.6188]
[1757082639146,0.02885503,4332.0,4330.3,0.6188]
[1757082639336,0.4715,4332.8,4330.3,0.6188]
[1757082639337,0.02885037,4332.7,4330.3,0.6188]
[1757082639643,0.025,4332.8,4330.6,3.792]
[1757082639946,0.025,4332.8,4332.7,2.30802963]
[1757082640129,0.025,4332.8,4330.0,0.17092079]
[1757082640130,3.0,4332.5,4330.0,0.17092079]
[1757082640329,0.37403236,4332.4,4330.1,1.5895]
[1757082640531,2.30865684,4331.6,4330.1,1.5895]
[1757082640844,0.048,4332.8,4330.0,0.17092079]
[1757082640845,0.0288537,4332.2,4330.2,1.5895]
[1757082641045,0.02885037,4332.7,4330.3,1.5895]
[1757082641224,0.025,4332.8,4331.1,2.30884727]
[1757082641422,0.025,4332.8,4330.4,3.2915]
[1757082641637,2.3080829,4332.6,4330.5,1.5895]
[1757082641961,0.0288517,4332.5,4330.5,1.5895]
[1757082642260,0.025,4331.8,4330.4,1.702]
[1757082642435,2.30866089,4331.6,4330.6,1.5895]
[1757082642611,0.025,4331.8,4330.6,1.5895]
[1757082643008,2.30884805,4331.2,4330.6,1.5895]
[1757082643243,0.025,4331.8,4329.8,0.4735]
[1757082643447,2.30877038,4331.4,4329.8,1.6145]
[1757082643745,0.02885969,4331.3,4329.8,1.6145]
[1757082644154,2.30900559,4330.9,4329.8,1.6145]
[1757082644319,0.05385636,4331.8,4330.1,2.30941483]
[1757082644515,0.05385636,4331.8,4329.9,3.89900197]
[1757082644858,12.58920231,4331.6,4330.0,1.141]
[1757082645054,14.89826166,4330.8,4329.8,0.025]
[1757082645209,0.02886369,4330.7,4329.8,0.025]
[1757082645534,3.0,4331.3,4329.9,1.5895]
[1757082645742,2.30952215,4329.9,4329.8,0.025]
[1757082645911,0.1152,4330.1,4329.8,0.025]
[1757082646107,0.1152,4330.6,4329.9,1.141]
[1757082646312,2.30946882,4330.0,4329.9,1.141]
[1757082646530,2.30952215,4329.9,4329.8,0.1402]
[1757082646743,2.54047437,4329.9,4329.8,0.025]
[1757082646945,2.56934339,4329.9,4329.8,0.025]
[1757082647161,2.54047437,4329.9,4329.8,0.025]
[1757082647524,2.56934339,4329.9,4329.8,1e-08]
[1757082648478,2.30952215,4329.9,4329.8,1e-08]
[1757082648622,0.001,4330.5,4329.8,1.14100001]
[1757082648823,2.30952215,4329.9,4329.8,1.14100001]
[1757082649131,2.30952215,4329.9,4329.8,1e-08]
[1757082649335,0.001,4330.5,4329.8,1e-08]